[Event "Early-Titled-Tuesday-Blitz-May-28-2024"]
[Site "Chess.com"]
[Date "2024.05.28"]
[Round "1"]
[White "Redbandit87"]
[Black "nabukatnezarr"]
[Result "0-1"]
[WhiteElo "2369"]
[BlackElo "2675"]
[TimeControl "180+1"]
[EndTime "8:07:40 PDT"]
[Termination "nabukatnezarr won by checkmate"]

1. d4 {[%clk 0:02:59.4]} 1... Nf6 {[%clk 0:02:59.2]} 2. Bf4 {[%clk 0:02:59.8]}
2... b6 {[%clk 0:02:47.3]} 3. e3 {[%clk 0:03:00.7]} 3... Bb7 {[%clk 0:02:46.8]}
4. Nf3 {[%clk 0:03:00.3]} 4... g6 {[%clk 0:02:40]} 5. h3 {[%clk 0:02:57.9]} 5...
Bg7 {[%clk 0:02:40.3]} 6. Be2 {[%clk 0:02:50.7]} 6... O-O {[%clk 0:02:40.5]} 7.
O-O {[%clk 0:02:45]} 7... d6 {[%clk 0:02:38.7]} 8. c4 {[%clk 0:02:44.4]} 8... c5
{[%clk 0:02:35.3]} 9. Nc3 {[%clk 0:02:42.6]} 9... Nc6 {[%clk 0:02:20.2]} 10. d5
{[%clk 0:02:27.6]} 10... Na5 {[%clk 0:02:16.5]} 11. Qc2 {[%clk 0:02:23.3]} 11...
Re8 {[%clk 0:02:06.8]} 12. Bh2 {[%clk 0:02:18.4]} 12... a6 {[%clk 0:01:59.5]}
13. Rfd1 {[%clk 0:02:12]} 13... Qd7 {[%clk 0:01:51.7]} 14. e4 {[%clk 0:02:11.6]}
14... Rac8 {[%clk 0:01:32.3]} 15. a4 {[%clk 0:02:04.6]} 15... Qd8 {[%clk
0:01:29.6]} 16. e5 {[%clk 0:02:00.1]} 16... dxe5 {[%clk 0:01:27.5]} 17. Bxe5
{[%clk 0:01:57]} 17... Ba8 {[%clk 0:01:17.7]} 18. Bf1 {[%clk 0:01:10.9]} 18...
Nb7 {[%clk 0:01:16.9]} 19. b3 {[%clk 0:00:53.6]} 19... Nd6 {[%clk 0:01:17.3]}
20. a5 {[%clk 0:00:50.6]} 20... Rb8 {[%clk 0:01:06.5]} 21. axb6 {[%clk
0:00:50.2]} 21... Qxb6 {[%clk 0:01:07.4]} 22. Ra3 {[%clk 0:00:48.4]} 22... Bb7
{[%clk 0:00:54.2]} 23. Bxd6 {[%clk 0:00:38.7]} 23... exd6 {[%clk 0:00:53.4]} 24.
Ra4 {[%clk 0:00:20.4]} 24... Bc8 {[%clk 0:00:53.5]} 25. Ra3 {[%clk 0:00:17.6]}
25... Bf5 {[%clk 0:00:53]} 26. Qa2 {[%clk 0:00:16.3]} 26... Ra8 {[%clk
0:00:49.9]} 27. Nb1 {[%clk 0:00:14.6]} 27... Ne4 {[%clk 0:00:48.7]} 28. Bd3
{[%clk 0:00:05.2]} 28... a5 {[%clk 0:00:45.7]} 29. Bxe4 {[%clk 0:00:05]} 29...
Bxe4 {[%clk 0:00:45.5]} 30. Nbd2 {[%clk 0:00:05.7]} 30... Bd3 {[%clk 0:00:44.6]}
31. g4 {[%clk 0:00:03.8]} 31... Qb4 {[%clk 0:00:44.6]} 32. Kg2 {[%clk
0:00:03.8]} 32... Be2 {[%clk 0:00:44.7]} 33. Rg1 {[%clk 0:00:03.3]} 33... Qc3
{[%clk 0:00:42.4]} 34. Ra4 {[%clk 0:00:02.1]} 34... Reb8 {[%clk 0:00:30.7]} 35.
Ra1 {[%clk 0:00:02.3]} 35... Bxf3+ {[%clk 0:00:28.5]} 36. Nxf3 {[%clk
0:00:01.7]} 36... Rxb3 {[%clk 0:00:29.4]} 37. Rxa5 {[%clk 0:00:01.2]} 37...
Qxf3+ {[%clk 0:00:29.4]} 38. Kg1 {[%clk 0:00:01.6]} 38... Rxa5 {[%clk
0:00:28.5]} 39. Qxa5 {[%clk 0:00:02.3]} 39... Bxa1 {[%clk 0:00:28.8]} 40. Qxa1
{[%clk 0:00:02.5]} 40... Qxh3 {[%clk 0:00:27.8]} 41. Qa8+ {[%clk 0:00:03]} 41...
Kg7 {[%clk 0:00:28.1]} 42. Qa1+ {[%clk 0:00:03.2]} 42... Qc3 {[%clk 0:00:28.8]}
43. Qf1 {[%clk 0:00:03.1]} 43... Ra3 {[%clk 0:00:27.6]} 44. Kg2 {[%clk 0:00:04]}
44... Ra1 {[%clk 0:00:27.4]} 45. Qe2 {[%clk 0:00:04.2]} 45... Rc1 {[%clk
0:00:26.3]} 46. Qe7 {[%clk 0:00:04.8]} 46... Qe5 {[%clk 0:00:25.7]} 47. Qd7
{[%clk 0:00:05.4]} 47... Rxc4 {[%clk 0:00:24.1]} 48. Kf3 {[%clk 0:00:05.8]}
48... Qxd5+ {[%clk 0:00:24.3]} 49. Kg3 {[%clk 0:00:06.1]} 49... Qe5+ {[%clk
0:00:24.8]} 50. Kg2 {[%clk 0:00:07]} 50... Rf4 {[%clk 0:00:24.8]} 51. f3 {[%clk
0:00:07.1]} 51... Qe2+ {[%clk 0:00:24.6]} 52. Kg3 {[%clk 0:00:08]} 52... Qxf3+
{[%clk 0:00:24.9]} 53. Kh2 {[%clk 0:00:07.9]} 53... Qf2+ {[%clk 0:00:24]} 54.
Kh1 {[%clk 0:00:08.8]} 54... Qf1+ {[%clk 0:00:23.8]} 55. Kh2 {[%clk 0:00:09.7]}
55... Rf2+ {[%clk 0:00:24.4]} 56. Kg3 {[%clk 0:00:10.6]} 56... Qg1+ {[%clk
0:00:24.1]} 57. Kh4 {[%clk 0:00:11.5]} 57... Rh2+ {[%clk 0:00:24.2]} 58. Kg5
{[%clk 0:00:12.4]} 58... Qe3# {[%clk 0:00:24.4]} 0-1

[Event "Early-Titled-Tuesday-Blitz-May-28-2024"]
[Site "Chess.com"]
[Date "2024.05.28"]
[Round "1"]
[White "ahmedkandiliii"]
[Black "Oleksandr_Bortnyk"]
[Result "0-1"]
[WhiteElo "2529"]
[BlackElo "3015"]
[TimeControl "180+1"]
[EndTime "8:07:41 PDT"]
[Termination "Oleksandr_Bortnyk won by checkmate"]

1. e4 {[%clk 0:03:00.9]} 1... Nf6 {[%clk 0:02:57.3]} 2. d3 {[%clk 0:02:52.4]}
2... d5 {[%clk 0:02:55.9]} 3. Nd2 {[%clk 0:02:51.4]} 3... e5 {[%clk 0:02:54.9]}
4. Ngf3 {[%clk 0:02:49.7]} 4... Nc6 {[%clk 0:02:53.4]} 5. g3 {[%clk 0:02:49.6]}
5... dxe4 {[%clk 0:02:50.9]} 6. dxe4 {[%clk 0:02:41.7]} 6... Bc5 {[%clk
0:02:51]} 7. Bg2 {[%clk 0:02:41.2]} 7... O-O {[%clk 0:02:50.4]} 8. O-O {[%clk
0:02:41.2]} 8... Qe7 {[%clk 0:02:47.8]} 9. c3 {[%clk 0:02:40.4]} 9... Be6 {[%clk
0:02:43.3]} 10. Qe2 {[%clk 0:02:37.1]} 10... a5 {[%clk 0:02:39]} 11. Nc4 {[%clk
0:02:36.1]} 11... Nd7 {[%clk 0:02:21.4]} 12. a4 {[%clk 0:02:31.3]} 12... f6
{[%clk 0:02:18]} 13. Be3 {[%clk 0:02:18]} 13... Qf7 {[%clk 0:02:14.1]} 14. Nfd2
{[%clk 0:01:52.8]} 14... Rfd8 {[%clk 0:01:59.3]} 15. Kh1 {[%clk 0:01:47.7]}
15... Bxe3 {[%clk 0:01:29.7]} 16. Nxe3 {[%clk 0:01:46.3]} 16... Ne7 {[%clk
0:01:30.6]} 17. f4 {[%clk 0:01:43.7]} 17... exf4 {[%clk 0:01:30.9]} 18. gxf4
{[%clk 0:01:42.9]} 18... Nc5 {[%clk 0:01:31.8]} 19. b4 {[%clk 0:01:33.2]} 19...
axb4 {[%clk 0:01:27.6]} 20. cxb4 {[%clk 0:01:34.1]} 20... Nxa4 {[%clk
0:01:26.7]} 21. f5 {[%clk 0:01:05.7]} 21... Bd7 {[%clk 0:01:21.7]} 22. e5 {[%clk
0:01:03.2]} 22... fxe5 {[%clk 0:01:17.3]} 23. f6 {[%clk 0:01:01.6]} 23... gxf6
{[%clk 0:01:16.4]} 24. Ne4 {[%clk 0:00:57.6]} 24... f5 {[%clk 0:01:09.9]} 25.
Ng4 {[%clk 0:00:49.4]} 25... Kh8 {[%clk 0:00:48.6]} 26. Nxe5 {[%clk 0:00:49.1]}
26... Qg7 {[%clk 0:00:49.3]} 27. Ng5 {[%clk 0:00:45.7]} 27... Be8 {[%clk
0:00:33.9]} 28. Ne6 {[%clk 0:00:44.5]} 28... Qf6 {[%clk 0:00:23.6]} 29. Nxd8
{[%clk 0:00:42]} 29... Rxd8 {[%clk 0:00:24.5]} 30. Bxb7 {[%clk 0:00:36.6]} 30...
Nc3 {[%clk 0:00:22.4]} 31. Qe3 {[%clk 0:00:28.2]} 31... Ncd5 {[%clk 0:00:20.1]}
32. Bxd5 {[%clk 0:00:27]} 32... Nxd5 {[%clk 0:00:20.1]} 33. Qd4 {[%clk
0:00:27.1]} 33... h6 {[%clk 0:00:11]} 34. Ra5 {[%clk 0:00:20.6]} 34... c6 {[%clk
0:00:07]} 35. Ra7 {[%clk 0:00:20]} 35... Rd6 {[%clk 0:00:03.7]} 36. Rg1 {[%clk
0:00:18.5]} 36... Re6 {[%clk 0:00:02.9]} 37. Nf3 {[%clk 0:00:09]} 37... Qxd4
{[%clk 0:00:02.4]} 38. Nxd4 {[%clk 0:00:09.9]} 38... Re4 {[%clk 0:00:01.7]} 39.
Nxf5 {[%clk 0:00:09.1]} 39... Nf6 {[%clk 0:00:01.8]} 40. Ra8 {[%clk 0:00:09.2]}
40... Rxb4 {[%clk 0:00:01.3]} 41. Nxh6 {[%clk 0:00:07.6]} 41... Kh7 {[%clk
0:00:01.3]} 42. Nf5 {[%clk 0:00:07.6]} 42... c5 {[%clk 0:00:02.1]} 43. Nd6
{[%clk 0:00:07.8]} 43... Bc6+ {[%clk 0:00:02.3]} 44. Rg2 {[%clk 0:00:08.2]}
44... Rb1# {[%clk 0:00:02.6]} 0-1

[Event "Early-Titled-Tuesday-Blitz-May-28-2024"]
[Site "Chess.com"]
[Date "2024.05.28"]
[Round "1"]
[White "Mikasinski"]
[Black "PapiPapita"]
[Result "0-1"]
[WhiteElo "2707"]
[BlackElo "2428"]
[TimeControl "180+1"]
[EndTime "8:07:44 PDT"]
[Termination "PapiPapita won by resignation"]

1. e4 {[%clk 0:03:00.9]} 1... c6 {[%clk 0:02:59.7]} 2. d4 {[%clk 0:03:00.5]}
2... d5 {[%clk 0:03:00.6]} 3. e5 {[%clk 0:03:00.9]} 3... Bf5 {[%clk 0:03:00.2]}
4. h4 {[%clk 0:03:00.6]} 4... h5 {[%clk 0:02:59.8]} 5. Bd3 {[%clk 0:02:59.5]}
5... Bxd3 {[%clk 0:02:59.4]} 6. Qxd3 {[%clk 0:03:00.4]} 6... Qa5+ {[%clk
0:02:57]} 7. Nd2 {[%clk 0:02:59.6]} 7... e6 {[%clk 0:02:56.4]} 8. Nf3 {[%clk
0:02:56.7]} 8... Nh6 {[%clk 0:02:54.3]} 9. O-O {[%clk 0:02:54.9]} 9... Be7
{[%clk 0:02:53.2]} 10. g3 {[%clk 0:02:52.6]} 10... c5 {[%clk 0:02:51.8]} 11. c4
{[%clk 0:02:51.3]} 11... Qa6 {[%clk 0:02:39]} 12. b3 {[%clk 0:02:38.1]} 12...
Nc6 {[%clk 0:02:37.7]} 13. dxc5 {[%clk 0:02:28.3]} 13... Bxc5 {[%clk 0:02:25.5]}
14. a3 {[%clk 0:02:28.1]} 14... Nf5 {[%clk 0:02:18.8]} 15. b4 {[%clk 0:02:24.7]}
15... Bxb4 {[%clk 0:02:18.1]} 16. axb4 {[%clk 0:02:19.6]} 16... Qxa1 {[%clk
0:02:19]} 17. cxd5 {[%clk 0:02:19.3]} 17... Rd8 {[%clk 0:02:18.5]} 18. d6 {[%clk
0:02:12.8]} 18... O-O {[%clk 0:02:16.4]} 19. Nc4 {[%clk 0:02:08.2]} 19... b5
{[%clk 0:02:08.7]} 20. Nb2 {[%clk 0:01:17.8]} 20... Nxb4 {[%clk 0:02:09]} 21.
Qxb5 {[%clk 0:01:15.4]} 21... Rb8 {[%clk 0:02:08.8]} 22. Qe2 {[%clk 0:01:09.4]}
22... Nd5 {[%clk 0:02:00.9]} 23. Nc4 {[%clk 0:01:01.5]} 23... Rb1 {[%clk
0:01:59.6]} 24. Bg5 {[%clk 0:00:57]} 24... Rxf1+ {[%clk 0:01:58.5]} 25. Qxf1
{[%clk 0:00:56.1]} 25... Qxf1+ {[%clk 0:01:59.4]} 26. Kxf1 {[%clk 0:00:56.3]}
26... f6 {[%clk 0:01:56]} 27. exf6 {[%clk 0:00:56.7]} 27... gxf6 {[%clk
0:01:56.9]} 28. Bd2 {[%clk 0:00:55.5]} 28... Rc8 {[%clk 0:01:55.4]} 29. d7
{[%clk 0:00:54.8]} 29... Rd8 {[%clk 0:01:53.7]} 30. Na5 {[%clk 0:00:47.4]} 30...
Rxd7 {[%clk 0:01:52.8]} 31. Nc6 {[%clk 0:00:47.1]} 31... Nde7 {[%clk 0:01:41.9]}
32. Nb4 {[%clk 0:00:38.5]} 32... Nd4 {[%clk 0:01:36.6]} 33. Ne1 {[%clk
0:00:34.2]} 33... Nec6 {[%clk 0:01:26.7]} 34. Nbd3 {[%clk 0:00:32.4]} 34... e5
{[%clk 0:01:23.1]} 35. Nc5 {[%clk 0:00:30.1]} 35... Rd5 {[%clk 0:01:23.2]} 36.
Ne4 {[%clk 0:00:29.8]} 36... Kf7 {[%clk 0:01:22.6]} 37. Be3 {[%clk 0:00:22.9]}
37... Nf5 {[%clk 0:01:18.8]} 38. Bc1 {[%clk 0:00:20.6]} 38... Rd4 {[%clk
0:01:13.2]} 39. f3 {[%clk 0:00:19.5]} 39... Rxe4 {[%clk 0:00:54.8]} 40. fxe4
{[%clk 0:00:18.6]} 40... Nxg3+ {[%clk 0:00:55.7]} 41. Kg2 {[%clk 0:00:19]} 41...
Nxe4 {[%clk 0:00:56.6]} 42. Nd3 {[%clk 0:00:16.1]} 42... Ke6 {[%clk 0:00:53.8]}
43. Ba3 {[%clk 0:00:12.3]} 43... a5 {[%clk 0:00:51.7]} 44. Nb2 {[%clk
0:00:12.1]} 44... Kd5 {[%clk 0:00:50.9]} 45. Na4 {[%clk 0:00:11.9]} 45... Kc4
{[%clk 0:00:49.7]} 46. Nb6+ {[%clk 0:00:12.4]} 46... Kb3 {[%clk 0:00:49.7]} 47.
Bf8 {[%clk 0:00:12.5]} 47... a4 {[%clk 0:00:49.6]} 48. Kf3 {[%clk 0:00:07.1]}
48... Nc3 {[%clk 0:00:45.1]} 49. Bg7 {[%clk 0:00:05]} 49... a3 {[%clk
0:00:43.1]} 50. Nd7 {[%clk 0:00:05.2]} 50... a2 {[%clk 0:00:42.1]} 51. Nc5+
{[%clk 0:00:05.9]} 51... Kc4 {[%clk 0:00:42.2]} 52. Nd7 {[%clk 0:00:02.4]} 52...
Nd4+ {[%clk 0:00:38.7]} 53. Kg3 {[%clk 0:00:02.2]} 53... Ne4+ {[%clk 0:00:36.7]}
54. Kg2 {[%clk 0:00:02]} 54... a1=Q {[%clk 0:00:36.6]} 0-1

[Event "Early-Titled-Tuesday-Blitz-May-28-2024"]
[Site "Chess.com"]
[Date "2024.05.28"]
[Round "1"]
[White "Thunderbolt135"]
[Black "Engima32"]
[Result "1-0"]
[WhiteElo "2879"]
[BlackElo "2490"]
[TimeControl "180+1"]
[EndTime "8:07:46 PDT"]
[Termination "Thunderbolt135 won by checkmate"]

1. b3 {[%clk 0:03:00.9]} 1... c5 {[%clk 0:02:59.2]} 2. Bb2 {[%clk 0:03:00.9]}
2... Nc6 {[%clk 0:03:00]} 3. e4 {[%clk 0:03:00.9]} 3... Nf6 {[%clk 0:02:59.4]}
4. e5 {[%clk 0:02:59.4]} 4... Nd5 {[%clk 0:02:59.5]} 5. Nf3 {[%clk 0:03:00.1]}
5... g6 {[%clk 0:02:59.1]} 6. e6 {[%clk 0:02:55.4]} 6... f6 {[%clk 0:02:59]} 7.
exd7+ {[%clk 0:02:54.9]} 7... Qxd7 {[%clk 0:02:58.8]} 8. d4 {[%clk 0:02:51.7]}
8... cxd4 {[%clk 0:02:56.5]} 9. Nxd4 {[%clk 0:02:52.6]} 9... Nxd4 {[%clk
0:02:56.6]} 10. Qxd4 {[%clk 0:02:47.1]} 10... e5 {[%clk 0:02:56.8]} 11. Qe4
{[%clk 0:02:47.2]} 11... Bb4+ {[%clk 0:02:51.9]} 12. c3 {[%clk 0:02:46.6]} 12...
Bc5 {[%clk 0:02:49.4]} 13. Nd2 {[%clk 0:02:43.7]} 13... O-O {[%clk 0:02:45.4]}
14. Bc4 {[%clk 0:02:05.1]} 14... Rd8 {[%clk 0:02:45]} 15. O-O-O {[%clk
0:01:44.5]} 15... Qc6 {[%clk 0:02:32.1]} 16. Qf3 {[%clk 0:01:30.3]} 16... Kg7
{[%clk 0:02:28.7]} 17. Ne4 {[%clk 0:01:24]} 17... Be7 {[%clk 0:02:28.4]} 18. h4
{[%clk 0:01:01.5]} 18... Nf4 {[%clk 0:02:01.2]} 19. g3 {[%clk 0:00:54.5]} 19...
Bf5 {[%clk 0:02:00]} 20. Rde1 {[%clk 0:00:41.2]} 20... Bxe4 {[%clk 0:01:20.7]}
21. Rxe4 {[%clk 0:00:36.3]} 21... f5 {[%clk 0:01:21]} 22. Re3 {[%clk 0:00:29.3]}
22... Qxf3 {[%clk 0:01:19.7]} 23. Rxf3 {[%clk 0:00:30.2]} 23... Nd5 {[%clk
0:01:17.6]} 24. Bxd5 {[%clk 0:00:20.8]} 24... Rxd5 {[%clk 0:01:17.6]} 25. c4
{[%clk 0:00:21.6]} 25... Ra5 {[%clk 0:01:15]} 26. Re3 {[%clk 0:00:18.4]} 26...
Bf6 {[%clk 0:01:14.7]} 27. a4 {[%clk 0:00:18.1]} 27... e4 {[%clk 0:01:14.1]} 28.
Rd1 {[%clk 0:00:17.8]} 28... Rf8 {[%clk 0:01:13.4]} 29. f3 {[%clk 0:00:14.6]}
29... exf3 {[%clk 0:01:12.7]} 30. Rxf3 {[%clk 0:00:14.6]} 30... Bxb2+ {[%clk
0:01:12.5]} 31. Kxb2 {[%clk 0:00:15.5]} 31... Re5 {[%clk 0:01:12.9]} 32. Rd7+
{[%clk 0:00:15.5]} 32... Rf7 {[%clk 0:01:13.2]} 33. Rfd3 {[%clk 0:00:16.4]}
33... Ree7 {[%clk 0:01:09.1]} 34. Rxe7 {[%clk 0:00:16]} 34... Rxe7 {[%clk
0:01:10]} 35. Kc3 {[%clk 0:00:16.9]} 35... Kf6 {[%clk 0:01:10.1]} 36. c5 {[%clk
0:00:17.3]} 36... g5 {[%clk 0:01:10.6]} 37. hxg5+ {[%clk 0:00:13.9]} 37... Kxg5
{[%clk 0:01:11.5]} 38. b4 {[%clk 0:00:14.8]} 38... Kg4 {[%clk 0:01:09.7]} 39. b5
{[%clk 0:00:14.8]} 39... Re5 {[%clk 0:01:08.5]} 40. Kc4 {[%clk 0:00:12.8]} 40...
Re4+ {[%clk 0:01:08.7]} 41. Kb3 {[%clk 0:00:13.5]} 41... h5 {[%clk 0:01:08.4]}
42. c6 {[%clk 0:00:13.1]} 42... bxc6 {[%clk 0:01:08.5]} 43. bxc6 {[%clk
0:00:14]} 43... Re6 {[%clk 0:01:08.5]} 44. Rc3 {[%clk 0:00:14.1]} 44... Re8
{[%clk 0:01:05.4]} 45. Kb4 {[%clk 0:00:14.7]} 45... f4 {[%clk 0:01:04.2]} 46.
gxf4 {[%clk 0:00:14.5]} 46... h4 {[%clk 0:01:04.8]} 47. Kb5 {[%clk 0:00:14.6]}
47... h3 {[%clk 0:01:04.2]} 48. c7 {[%clk 0:00:14]} 48... h2 {[%clk 0:01:04]}
49. Rc1 {[%clk 0:00:14.7]} 49... Kxf4 {[%clk 0:00:57]} 50. Ka6 {[%clk 0:00:15]}
50... Re6+ {[%clk 0:00:48.3]} 51. Kb7 {[%clk 0:00:12.2]} 51... Re7 {[%clk
0:00:46.7]} 52. Kb8 {[%clk 0:00:09.4]} 52... Rxc7 {[%clk 0:00:45.8]} 53. Kxc7
{[%clk 0:00:10.3]} 53... Kg3 {[%clk 0:00:45.3]} 54. a5 {[%clk 0:00:10.5]} 54...
Kg2 {[%clk 0:00:46.2]} 55. a6 {[%clk 0:00:10.9]} 55... h1=Q {[%clk 0:00:47.1]}
56. Rxh1 {[%clk 0:00:11.4]} 56... Kxh1 {[%clk 0:00:48]} 57. Kb7 {[%clk
0:00:12.3]} 57... Kg2 {[%clk 0:00:48.9]} 58. Kxa7 {[%clk 0:00:13.2]} 58... Kf3
{[%clk 0:00:49.8]} 59. Kb7 {[%clk 0:00:14.1]} 59... Ke4 {[%clk 0:00:50.7]} 60.
a7 {[%clk 0:00:14.8]} 60... Kd4 {[%clk 0:00:51.6]} 61. a8=Q {[%clk 0:00:15.6]}
61... Kc5 {[%clk 0:00:52.5]} 62. Qc8+ {[%clk 0:00:16.2]} 62... Kd4 {[%clk
0:00:52.8]} 63. Qc6 {[%clk 0:00:16.7]} 63... Ke3 {[%clk 0:00:51.2]} 64. Qd5
{[%clk 0:00:17.1]} 64... Ke2 {[%clk 0:00:51.3]} 65. Qd4 {[%clk 0:00:17.6]} 65...
Kf1 {[%clk 0:00:52.2]} 66. Qd2 {[%clk 0:00:17.4]} 66... Kg1 {[%clk 0:00:53.1]}
67. Kc6 {[%clk 0:00:18.3]} 67... Kh1 {[%clk 0:00:54]} 68. Kd5 {[%clk 0:00:19.2]}
68... Kg1 {[%clk 0:00:54.7]} 69. Ke4 {[%clk 0:00:20.1]} 69... Kh1 {[%clk
0:00:55.6]} 70. Kf3 {[%clk 0:00:21]} 70... Kg1 {[%clk 0:00:56.5]} 71. Qg2#
{[%clk 0:00:21.4]} 1-0

[Event "Early-Titled-Tuesday-Blitz-May-28-2024"]
[Site "Chess.com"]
[Date "2024.05.28"]
[Round "1"]
[White "AlbusSevresPotter"]
[Black "Msb2"]
[Result "1-0"]
[WhiteElo "2554"]
[BlackElo "3045"]
[TimeControl "180+1"]
[EndTime "8:07:49 PDT"]
[Termination "AlbusSevresPotter won by checkmate"]

1. e4 {[%clk 0:03:00.9]} 1... e6 {[%clk 0:03:00.4]} 2. d4 {[%clk 0:02:59.9]}
2... d5 {[%clk 0:03:01.1]} 3. Nc3 {[%clk 0:02:59.5]} 3... Nf6 {[%clk 0:03:00.4]}
4. e5 {[%clk 0:02:59.7]} 4... Nfd7 {[%clk 0:03:00.8]} 5. f4 {[%clk 0:03:00.1]}
5... c5 {[%clk 0:03:01.5]} 6. Nf3 {[%clk 0:03:00.8]} 6... Nc6 {[%clk 0:03:02.3]}
7. Be3 {[%clk 0:03:01.2]} 7... Rb8 {[%clk 0:03:03]} 8. Qd2 {[%clk 0:02:51.9]}
8... Qa5 {[%clk 0:03:02.9]} 9. Be2 {[%clk 0:02:40.5]} 9... b5 {[%clk 0:03:01.5]}
10. O-O {[%clk 0:02:33.2]} 10... b4 {[%clk 0:03:00.3]} 11. Nd1 {[%clk
0:02:32.8]} 11... cxd4 {[%clk 0:03:00.8]} 12. Nxd4 {[%clk 0:02:32.5]} 12... Nxd4
{[%clk 0:03:01.4]} 13. Bxd4 {[%clk 0:02:33.1]} 13... Bc5 {[%clk 0:03:02.1]} 14.
Ne3 {[%clk 0:02:32.5]} 14... Bxd4 {[%clk 0:03:01.2]} 15. Qxd4 {[%clk 0:02:33.4]}
15... Qc5 {[%clk 0:03:01.8]} 16. Rfd1 {[%clk 0:02:33.2]} 16... O-O {[%clk
0:02:57.8]} 17. a3 {[%clk 0:02:18.9]} 17... a5 {[%clk 0:02:20.1]} 18. axb4
{[%clk 0:02:12]} 18... axb4 {[%clk 0:02:21]} 19. Ra7 {[%clk 0:01:47]} 19... Bb7
{[%clk 0:02:12.7]} 20. Qxc5 {[%clk 0:01:20.7]} 20... Nxc5 {[%clk 0:02:13.6]} 21.
Rd4 {[%clk 0:01:21.5]} 21... Ba8 {[%clk 0:02:05.9]} 22. Rc7 {[%clk 0:00:59.8]}
22... Na4 {[%clk 0:02:02.4]} 23. Nd1 {[%clk 0:00:56]} 23... g6 {[%clk
0:02:00.5]} 24. b3 {[%clk 0:00:55.1]} 24... Nc3 {[%clk 0:01:36.5]} 25. Nxc3
{[%clk 0:00:54.3]} 25... bxc3 {[%clk 0:01:37.4]} 26. Rxc3 {[%clk 0:00:51.3]}
26... Rfc8 {[%clk 0:01:38]} 27. Rxc8+ {[%clk 0:00:47.7]} 27... Rxc8 {[%clk
0:01:38.9]} 28. Bd3 {[%clk 0:00:48.4]} 28... Bc6 {[%clk 0:01:39.6]} 29. Rb4
{[%clk 0:00:46.7]} 29... Ra8 {[%clk 0:01:39.1]} 30. Rb6 {[%clk 0:00:46.6]} 30...
Be8 {[%clk 0:01:38.3]} 31. Kf2 {[%clk 0:00:45.7]} 31... Kf8 {[%clk 0:01:37.9]}
32. Ke3 {[%clk 0:00:44.9]} 32... Ra1 {[%clk 0:01:37.1]} 33. Rb8 {[%clk
0:00:44.8]} 33... Ke7 {[%clk 0:01:37.2]} 34. Rb7+ {[%clk 0:00:44]} 34... Kf8
{[%clk 0:01:34.5]} 35. b4 {[%clk 0:00:44.2]} 35... Rb1 {[%clk 0:01:30.9]} 36. b5
{[%clk 0:00:42.4]} 36... Rb4 {[%clk 0:01:30.5]} 37. c3 {[%clk 0:00:33.9]} 37...
Rb2 {[%clk 0:01:30.7]} 38. b6 {[%clk 0:00:20.4]} 38... Bc6 {[%clk 0:01:29.3]}
39. Rb8+ {[%clk 0:00:17.7]} 39... Ke7 {[%clk 0:01:29.9]} 40. Kd4 {[%clk
0:00:15.3]} 40... Bd7 {[%clk 0:01:28.4]} 41. Ba6 {[%clk 0:00:14.1]} 41... Ra2
{[%clk 0:01:22.9]} 42. b7 {[%clk 0:00:14.2]} 42... Rxa6 {[%clk 0:01:21.1]} 43.
Ra8 {[%clk 0:00:14.6]} 43... Rb6 {[%clk 0:01:19.1]} 44. b8=Q {[%clk 0:00:15]}
44... Rxb8 {[%clk 0:01:20]} 45. Rxb8 {[%clk 0:00:15.9]} 45... h6 {[%clk
0:01:20.5]} 46. g3 {[%clk 0:00:16]} 46... h5 {[%clk 0:01:18.7]} 47. Kc5 {[%clk
0:00:15.3]} 47... Ba4 {[%clk 0:01:18.9]} 48. Rb7+ {[%clk 0:00:15.5]} 48... Kf8
{[%clk 0:01:19.5]} 49. Kd6 {[%clk 0:00:15.7]} 49... Bc2 {[%clk 0:01:19.9]} 50.
h4 {[%clk 0:00:14.2]} 50... Bf5 {[%clk 0:01:12.9]} 51. Rb8+ {[%clk 0:00:14.2]}
51... Kg7 {[%clk 0:01:13.4]} 52. Ke7 {[%clk 0:00:15.1]} 52... g5 {[%clk
0:01:12.9]} 53. hxg5 {[%clk 0:00:08.6]} 53... Be4 {[%clk 0:01:12.9]} 54. Rf8
{[%clk 0:00:07.6]} 54... Bg6 {[%clk 0:01:13.3]} 55. Ke8 {[%clk 0:00:07.5]} 55...
Kh7 {[%clk 0:01:04.9]} 56. Ke7 {[%clk 0:00:04.9]} 56... Kg7 {[%clk 0:01:05.4]}
57. Rd8 {[%clk 0:00:05.2]} 57... Bf5 {[%clk 0:01:05.8]} 58. Rb8 {[%clk
0:00:05.4]} 58... Be4 {[%clk 0:01:06.4]} 59. Rb7 {[%clk 0:00:04.7]} 59... d4
{[%clk 0:01:04.5]} 60. Rb4 {[%clk 0:00:05.2]} 60... h4 {[%clk 0:01:02.1]} 61.
gxh4 {[%clk 0:00:03.9]} 61... Bd5 {[%clk 0:01:03]} 62. Rxd4 {[%clk 0:00:03.5]}
62... Kg6 {[%clk 0:01:03.9]} 63. c4 {[%clk 0:00:03.7]} 63... Kh5 {[%clk
0:01:04.8]} 64. cxd5 {[%clk 0:00:04]} 64... exd5 {[%clk 0:01:05.7]} 65. Rxd5
{[%clk 0:00:04.9]} 65... f5 {[%clk 0:01:06.6]} 66. exf6 {[%clk 0:00:04.5]} 66...
Kxh4 {[%clk 0:01:07.5]} 67. f7 {[%clk 0:00:05]} 67... Kg3 {[%clk 0:01:08.4]} 68.
g6 {[%clk 0:00:05.6]} 68... Kf3 {[%clk 0:01:09.1]} 69. f5 {[%clk 0:00:05.6]}
69... Ke4 {[%clk 0:01:10]} 70. Ke6 {[%clk 0:00:06.3]} 70... Ke3 {[%clk
0:01:10.9]} 71. f8=Q {[%clk 0:00:06.8]} 71... Ke2 {[%clk 0:01:11.8]} 72. Qb4
{[%clk 0:00:07.1]} 72... Kf3 {[%clk 0:01:11.7]} 73. Rd3+ {[%clk 0:00:07.2]}
73... Kf2 {[%clk 0:01:12.6]} 74. Qd2+ {[%clk 0:00:07.4]} 74... Kf1 {[%clk
0:01:12.3]} 75. Re3 {[%clk 0:00:07.5]} 75... Kg1 {[%clk 0:01:13.2]} 76. Re1#
{[%clk 0:00:08.4]} 1-0